bitfinex-derivatives/quotes_BTCF0:USTF0_20251219
["timestamp","ask_amount","ask_price","bid_price","bid_amount"]
[1766103533430,0.1508009,85584.0,85574.0,0.31492]
[1766103537223,0.3608,85575.0,85570.0,0.00017531]
[1766103537426,0.49991,85575.0,85560.0,6e-05]
[1766103537622,0.3608,85561.0,85553.0,6e-05]
[1766103537822,0.3608,85561.0,85553.0,0.32322]
[1766103538331,0.36073,85561.0,85553.0,0.32316]
[1766103538624,0.36073,85561.0,85554.0,0.00209]
[1766103541814,0.13911,85568.0,85549.0,0.3608]
[1766103541815,0.14348,85558.0,85549.0,0.35562103]
[1766103542019,0.1551746,85557.0,85549.0,0.35562103]
[1766103542219,0.0908,85550.0,85539.0,0.14916]
[1766103542430,0.23588498,85550.0,85540.0,0.14916]
[1766103542631,0.23588498,85550.0,85538.0,0.00233816]
[1766103543222,0.0308,85550.0,85539.0,0.14916]
[1766103548135,0.14348,85556.0,85540.0,0.1608568]
[1766103551137,0.3608,85558.0,85540.0,0.14916]
[1766103551138,0.14348,85554.0,85540.0,0.14916]
[1766103551333,0.14348,85552.0,85538.0,0.36313816]
[1766103551541,0.3608,85551.0,85539.0,0.14916]
[1766103552039,0.3608,85551.0,85539.0,0.1608569]
[1766103552334,0.3608,85551.0,85538.0,0.36313816]
[1766103552335,0.3008,85551.0,85544.0,0.14916]
[1766103552540,0.48732,85561.0,85547.0,0.14916]
[1766103552729,0.62794,85561.0,85547.0,0.14916]
[1766103553340,0.14062,85560.0,85547.0,0.14916]
[1766103553837,0.0116944,85558.0,85547.0,0.14916]
[1766103554035,0.3724929,85569.0,85557.0,0.36214]
[1766103554234,0.6909329,85569.0,85558.0,0.00134]
[1766103555948,0.0116932,85567.0,85558.0,0.00134]
[1766103556250,0.67924,85569.0,85558.0,0.00134]
[1766103558041,0.14062,85568.0,85566.0,0.3608]
[1766103559744,0.35504,85571.0,85566.0,0.3608]
[1766103559944,0.00017531,85572.0,85566.0,0.3608]
[1766103560145,0.14079531,85572.0,85566.0,0.3608]
[1766103560339,0.0116926,85571.0,85566.0,0.2408]
[1766103561144,0.14079531,85572.0,85566.0,0.2408]
[1766103561537,0.15248781,85572.0,85559.0,0.00059]
[1766103562752,0.14062,85569.0,85557.0,0.3608]
[1766103563048,0.14062,85569.0,85557.0,0.36207]
[1766103563737,0.011693,85568.0,85557.0,0.36207]
[1766103563937,0.0116936,85564.0,85557.0,0.3608]
[1766103564642,0.1523136,85564.0,85557.0,0.3608]
[1766103565649,0.0116941,85560.0,85555.0,0.00017531]
[1766103568448,0.3608,85562.0,85555.0,0.00017531]
[1766103568645,0.14062,85570.0,85565.0,0.0116933]
[1766103568849,0.00017531,85572.0,85569.0,0.3608]
[1766103569151,0.00017531,85572.0,85569.0,0.3008]
[1766103569347,0.00017531,85572.0,85561.0,0.3724938]
[1766103570236,0.00017531,85572.0,85561.0,0.3608]
[1766103570443,0.3608,85570.0,85561.0,0.3608]
[1766103570949,0.3608,85568.0,85561.0,0.3608]
[1766103572350,0.3608,85568.0,85561.0,0.3724939]
[1766103572743,0.3608,85568.0,85561.0,0.3608]
[1766103573058,0.0116929,85569.0,85559.0,0.00172]
[1766103573249,0.011693,85568.0,85559.0,0.00172]
[1766103573441,0.152313,85568.0,85555.0,0.00017531]
[1766103573641,0.0116933,85566.0,85555.0,0.00017531]
[1766103573853,0.14062,85565.0,85555.0,0.00017531]
[1766103575951,0.1523135,85564.0,85555.0,0.00017531]
[1766103576656,0.14062,85564.0,85555.0,0.00017531]
[1766103576954,0.14062,85568.0,85555.0,0.14942001]
[1766103578352,0.14062,85568.0,85557.0,0.0116945]
[1766103578544,0.14062,85568.0,85555.0,0.13772531]
[1766103578951,0.14062,85568.0,85555.0,0.00017531]
[1766103580057,0.14062,85566.0,85555.0,0.00017531]
[1766103580360,0.14062,85566.0,85555.0,0.14942011]
[1766103581157,0.14062,85566.0,85556.0,0.0116945]
[1766103581558,0.50142,85569.0,85556.0,0.0116945]
[1766103581742,0.50142,85569.0,85555.0,0.13772531]
[1766103581946,0.50142,85569.0,85557.0,0.0116944]
[1766103583459,0.50142,85569.0,85559.0,0.0116942]
[1766103583770,0.50142,85569.0,85555.0,0.13772531]
[1766103583958,0.14571,85568.0,85555.0,0.13772531]
[1766103584659,0.14571,85568.0,85557.0,0.0116945]
[1766103585455,0.3608,85566.0,85555.0,0.13772531]
[1766103585659,0.14571,85565.0,85555.0,0.00017531]
[1766103586161,0.14571,85563.0,85555.0,0.00017531]
[1766103586953,0.0116938,85562.0,85553.0,0.3608]
[1766103587166,0.14571,85551.0,85538.0,0.00233816]
[1766103587351,0.3608,85540.0,85538.0,0.00233816]
[1766103588068,0.14571,85538.0,85528.0,0.01932]
[1766103588262,0.14571,85535.0,85528.0,0.01932]
[1766103590864,0.14571,85535.0,85515.0,0.13844]
[1766103591068,0.3608,85536.0,85515.0,0.65964]
[1766103591069,0.14571,85530.0,85515.0,0.65964]
[1766103591277,0.14571,85529.0,85515.0,0.65964]
[1766103591562,0.3608,85526.0,85515.0,0.6713401]
[1766103591960,0.00010838,85525.0,85515.0,0.65964]
[1766103592165,0.00017531,85531.0,85523.0,0.49924]
[1766103592366,0.00017531,85531.0,85524.0,0.13844]
[1766103592569,0.00017531,85531.0,85524.0,0.011699]
[1766103592759,0.00017531,85531.0,85523.0,0.3608]
[1766103592965,0.14588531,85531.0,85523.0,0.3608]
[1766103593268,6.374e-05,85530.0,85523.0,0.3608]
[1766103594773,0.50651,85527.0,85515.0,0.6713402]
[1766103594970,0.14571,85526.0,85515.0,0.65964]
[1766103595173,0.3608,85519.0,85506.0,0.3608]
[1766103595672,0.3608,85510.0,85496.0,0.3608]
[1766103595866,0.56592433,85510.0,85496.0,0.3608]
[1766103596571,0.3608,85510.0,85498.0,0.0117025]
[1766103596763,0.3608,85510.0,85498.0,0.13844]
[1766103596962,0.3608,85510.0,85502.0,0.150142]
[1766103597167,0.3608,85510.0,85505.0,0.0117016]
[1766103597473,0.3608,85511.0,85502.0,0.150142]
[1766103597860,0.3608,85511.0,85499.0,0.0117024]
[1766103598469,0.3608,85511.0,85497.0,0.13844]
[1766103598670,0.3608,85511.0,85503.0,0.0117018]
[1766103598860,0.3608,85511.0,85501.0,0.13844]
[1766103599172,0.3608,85511.0,85499.0,0.0117024]
[1766103599780,0.3608,85511.0,85500.0,0.13844]
[1766103600275,0.3608,85511.0,85504.0,0.0117017]
[1766103600775,0.00017542,85513.0,85507.0,0.3608]
[1766103601072,2e-08,85513.0,85508.0,0.0117012]
[1766103601258,2e-08,85513.0,85507.0,0.3608]
[1766103601660,2e-08,85513.0,85507.0,0.3008]
[1766103601873,2e-08,85513.0,85507.0,0.14163]
[1766103602073,2e-08,85513.0,85508.0,0.0117012]
[1766103602262,2e-08,85513.0,85512.0,0.0117006]
[1766103602464,2e-08,85513.0,85508.0,0.1582311]
[1766103602975,2e-08,85513.0,85508.0,0.0117011]
[1766103603377,2e-08,85513.0,85507.0,0.14163]
[1766103603671,2e-08,85513.0,85507.0,0.1533312]
[1766103603872,2e-08,85513.0,85507.0,0.14163]
[1766103604277,2e-08,85513.0,85508.0,0.0117012]
[1766103604467,2e-08,85513.0,85510.0,0.0117008]
[1766103607475,0.3608,85527.0,85507.0,0.14163]
[1766103607476,6.374e-05,85530.0,85516.0,0.14653]
[1766103607678,0.3608,85528.0,85518.0,0.14653]
[1766103608065,0.3608,85528.0,85515.0,0.3608]
[1766103608266,0.14113,85527.0,85515.0,0.3608]
[1766103608575,0.0117,85517.0,85500.0,0.0117022]
[1766103608882,0.36215,85510.0,85499.0,0.0117024]
[1766103609073,0.00135,85510.0,85502.0,0.011702]
[1766103609274,0.3608,85508.0,85502.0,0.011702]
[1766103609575,0.3608,85520.0,85506.0,0.3608]
[1766103609776,0.30072,85525.0,85509.0,0.011701]
[1766103610274,0.3608,85529.0,85514.0,0.3608]
[1766103610478,0.22488,85528.0,85515.0,0.1582302]
[1766103612075,0.65264,85529.0,85521.0,0.0116994]
[1766103612276,0.65264,85529.0,85519.0,0.14653]
[1766103612777,0.65264,85529.0,85520.0,0.0116995]
[1766103613473,0.00023916,85530.0,85524.0,0.011699]
[1766103613671,0.00023916,85530.0,85523.0,0.3608]
[1766103613672,6e-08,85530.0,85523.0,0.3608]
[1766103613865,0.3608,85540.0,85530.0,0.1521781]
[1766103614062,0.3608,85540.0,85531.0,0.3608]
[1766103616283,0.3608,85540.0,85532.0,0.0116979]
[1766103616671,0.35232,85543.0,85535.0,0.0116975]
[1766103616975,0.00017542,85544.0,85535.0,0.0116975]
[1766103617486,0.00017542,85544.0,85539.0,0.0116969]
[1766103618581,0.14084,85552.0,85541.0,0.1521766]
[1766103618771,0.14382,85552.0,85539.0,0.3608]
[1766103619579,0.00298,85551.0,85539.0,0.3608]
[1766103619781,0.0172655,85550.0,85539.0,0.3608]
[1766103619981,0.00557,85549.0,85539.0,0.3608]
[1766103620179,0.3608,85545.0,85537.0,0.00017542]
[1766103620372,0.36637,85545.0,85537.0,0.00017542]
[1766103620682,0.20536914,85550.0,85539.0,0.3608]
[1766103620886,0.14084,85552.0,85539.0,0.50128]
[1766103622987,0.14726,85552.0,85539.0,0.50128]
[1766103623288,0.14726,85552.0,85537.0,0.01187262]
[1766103623289,0.00642,85546.0,85537.0,0.00017542]
[1766103626189,0.3608,85544.0,85537.0,0.00017542]
[1766103627983,0.3608,85544.0,85540.0,0.0116968]
[1766103629181,0.14084,85552.0,85543.0,0.3608]
[1766103629389,0.00017542,85554.0,85551.0,0.3608]
[1766103637998,0.36097542,85554.0,85542.0,0.0116965]
[1766103638390,0.36097542,85554.0,85544.0,0.14048]
[1766103638588,0.62232,85557.0,85551.0,0.3608]
[1766103638792,0.62232,85557.0,85552.0,0.14048]
[1766103639097,0.65976,85558.0,85552.0,0.14048]
[1766103639692,0.65976,85558.0,85551.0,0.3608]
[1766103640194,0.36097542,85564.0,85553.0,0.011695]
[1766103640398,0.58768,85563.0,85553.0,0.152175]
[1766103643699,0.58768,85563.0,85553.0,0.011695]
[1766103644396,0.58768,85563.0,85551.0,0.3608]
[1766103648400,0.58768,85563.0,85552.0,0.0116952]
[1766103648898,2.4568,85574.0,85551.0,0.3608]
[1766103648899,0.3608,85591.0,85563.0,0.13804]
[1766103649096,0.3608,85591.0,85562.0,0.3608]
[1766103649097,0.0116887,85600.0,85579.0,0.13804]
[1766103649292,0.14758,85602.0,85590.0,0.3608]
[1766103650000,0.14758,85602.0,85590.0,0.3724899]
[1766103650494,0.00017531,85605.0,85590.0,0.3724899]
[1766103650495,0.00022,85600.0,85590.0,0.06102]
[1766103650698,0.3608,85597.0,85588.0,3e-07]
[1766103650893,0.3608,85597.0,85588.0,6e-07]
[1766103653803,0.3608,85589.0,85588.0,6e-07]
[1766103656407,0.3608,85589.0,85580.0,0.0116913]
[1766103656710,0.3608,85581.0,85575.0,0.32712]
[1766103658410,0.3608,85581.0,85576.0,0.0116919]
[1766103659902,0.3608,85581.0,85575.0,0.32712]
[1766103660199,0.3608,85581.0,85575.0,0.3388119]
[1766103660408,0.00017531,85587.0,85580.0,0.3608]
[1766103660615,0.00017531,85587.0,85580.0,0.3724912]
[1766103660810,0.00017531,85587.0,85582.0,0.011691]
[1766103661614,0.00017531,85587.0,85580.0,0.3608]
[1766103662212,0.3608,85581.0,85570.0,0.13886]
[1766103662417,0.00985,85605.0,85587.0,0.13886]
[1766103662710,0.21485495,85600.0,85594.0,0.35095]
[1766103662912,0.00985,85600.0,85594.0,0.71175]
[1766103667821,0.0215387,85600.0,85594.0,0.71175]
[1766103668225,0.0116887,85600.0,85594.0,0.71175]
[1766103670110,0.0116889,85598.0,85594.0,0.1248403]
[1766103670316,0.0116892,85596.0,85588.0,0.00017531]
[1766103670512,0.3608,85590.0,85571.0,0.1505525]
[1766103670814,0.3608,85590.0,85567.0,0.372493]
[1766103670815,0.3608,85580.0,85567.0,0.372493]
[1766103671014,0.31792,85579.0,85567.0,0.3608]
[1766103671927,0.00012,85578.0,85567.0,0.3608]
[1766103672126,0.0118116,85578.0,85567.0,0.3608]
[1766103672326,0.0118116,85578.0,85564.0,0.00017531]
[1766103672631,0.3608,85573.0,85564.0,0.00017531]
[1766103675028,0.3724924,85573.0,85564.0,0.00017531]
[1766103675334,0.0116926,85571.0,85564.0,0.00017531]
[1766103676130,0.3608,85573.0,85564.0,1e-08]
[1766103676330,0.0116934,85565.0,85550.0,0.57750035]
[1766103676630,0.29872,85564.0,85550.0,0.71929035]
[1766103676834,0.29872,85564.0,85551.0,0.14179]
[1766103677735,0.3104137,85564.0,85551.0,0.14179]
[1766103677937,0.0129038,85562.0,85550.0,0.3608]
[1766103678125,0.00121,85559.0,85550.0,0.3608]
[1766103678722,0.3116236,85564.0,85550.0,0.3608]
[1766103678921,0.0116938,85562.0,85550.0,0.3608]
[1766103679333,0.0129038,85562.0,85550.0,0.3608]
[1766103679534,0.3608,85558.0,85550.0,0.3608]
[1766103682239,0.29872,85564.0,85550.0,0.50259]
[1766103682434,0.29872,85564.0,85553.0,0.0116949]
[1766103682640,0.29872,85564.0,85555.0,0.1534847]
[1766103683330,0.29872,85564.0,85555.0,0.14179]
[1766103684041,0.00017531,85565.0,85555.0,0.14179]
[1766103684242,0.25124,85564.0,85555.0,0.14179]
[1766103685034,0.3608,85566.0,85557.0,0.0116944]
[1766103685342,0.0116913,85581.0,85568.0,0.14179]
[1766103685541,0.22932,85574.0,85568.0,0.14179]
[1766103685840,0.36136,85583.0,85570.0,0.14179]
[1766103686044,0.3608,85591.0,85574.0,0.1534822]
[1766103686230,0.58188,85590.0,85582.0,0.3608]
[1766103686727,0.66012,85589.0,85582.0,0.3608]
[1766103686931,0.3608,85591.0,85582.0,0.3608]
[1766103687138,0.32896,85590.0,85582.0,0.3608]
[1766103687541,0.13561,85594.0,85582.0,0.3608]
[1766103687730,0.15192,85593.0,85582.0,0.3608]
[1766103688127,0.1636096,85593.0,85582.0,0.3608]
[1766103689435,0.0116896,85593.0,85582.0,0.3608]
[1766103689638,0.6192,85592.0,85582.0,0.3608]
[1766103690134,0.00017531,85595.0,85582.0,0.50259]
[1766103690339,0.11776,85594.0,85583.0,0.14179]
[1766103691048,0.56272,85593.0,85592.0,0.3608]
[1766103691437,0.50316,85593.0,85592.0,0.3608]
[1766103691642,0.66008,85593.0,85583.0,0.14179]
[1766103692042,0.66004,85592.0,85583.0,0.14179]
[1766103694164,0.3608,85594.0,85583.0,0.14179]
[1766103694541,0.22104,85593.0,85583.0,0.14179]
[1766103695155,0.2327296,85593.0,85583.0,0.14179]
[1766103695461,0.22104,85593.0,85583.0,0.14179]
[1766103696254,0.2327296,85593.0,85583.0,0.14179]
[1766103696847,0.2327296,85593.0,85582.0,0.3608]
[1766103697445,0.22104,85593.0,85583.0,0.14179]
[1766103697653,0.361,85592.0,85583.0,0.14179]
[1766103698163,0.3608,85594.0,85583.0,0.14179]
[1766103698465,0.27352,85593.0,85583.0,0.14179]
[1766103698844,0.3608,85594.0,85583.0,0.14179]
[1766103699150,0.65996,85593.0,85583.0,0.14179]
[1766103699561,0.65996,85592.0,85583.0,0.14179]
[1766103699766,0.65996,85591.0,85583.0,0.14179]
[1766103700263,0.65996,85591.0,85585.0,0.0116906]
[1766103701964,0.65996,85591.0,85583.0,0.14179]
[1766103702751,0.65996,85591.0,85586.0,0.0116905]
[1766103702952,0.65996,85591.0,85583.0,0.1534808]
[1766103704357,0.65996,85591.0,85583.0,0.14179]
[1766103705264,0.00017531,85595.0,85582.0,0.372491]
[1766103705265,0.00017531,85595.0,85584.0,0.13716]
[1766103705462,1e-08,85595.0,85594.0,0.1488494]
[1766103705659,0.3608,85599.0,85594.0,0.1488494]
[1766103705860,0.13866,85605.0,85592.0,0.13716]
[1766103706051,0.33384,85604.0,85592.0,0.13716]
[1766103706565,0.13866,85600.0,85589.0,0.3608]
[1766103706967,0.1503488,85599.0,85589.0,0.3608]
[1766103707565,0.3724891,85597.0,85589.0,0.3608]
[1766103707875,0.3608,85597.0,85589.0,0.3608]
[1766103708174,0.13866,85599.0,85589.0,0.3608]
[1766103709167,0.19628,85598.0,85589.0,0.3608]
[1766103709764,0.0116892,85596.0,85589.0,0.3608]
[1766103710167,0.0116895,85594.0,85589.0,0.3608]
[1766103711267,0.0116895,85594.0,85587.0,0.13716]
[1766103712458,0.3724891,85597.0,85587.0,0.13716]
[1766103713256,0.0116894,85595.0,85587.0,0.13716]
[1766103713457,0.1503495,85594.0,85584.0,0.3608]
[1766103714170,0.0116897,85592.0,85584.0,0.3608]
[1766103714368,0.0116894,85595.0,85585.0,0.13716]
[1766103714758,0.3608,85597.0,85585.0,0.13716]
[1766103716370,0.0116895,85594.0,85585.0,0.13716]
[1766103718270,0.3724891,85597.0,85585.0,0.13716]
[1766103718965,0.3608,85595.0,85585.0,0.13716]
[1766103719565,0.3724893,85595.0,85585.0,0.13716]
[1766103720267,0.3608,85595.0,85585.0,0.13716]
[1766103721360,0.13866,85594.0,85582.0,0.3724911]
[1766103721561,0.13866,85594.0,85584.0,0.0116908]
[1766103722077,0.13866,85594.0,85582.0,0.3608]
[1766103722262,0.13845,85584.0,85575.0,0.011692]
[1766103722576,0.46233,85584.0,85574.0,0.00017531]
[1766103722976,0.4740208,85584.0,85574.0,0.00017531]
[1766103723279,0.13845,85576.0,85561.0,0.3608]
[1766103723573,0.13845,85576.0,85559.0,0.3608]
[1766103723974,0.13845,85576.0,85560.0,0.011694]
[1766103724373,0.13845,85572.0,85559.0,0.36097531]
[1766103724582,0.13845,85564.0,85559.0,0.00017531]
[1766103724878,0.1501437,85563.0,85552.0,0.3608]
[1766103725374,0.3608,85561.0,85552.0,0.3608]
[1766103727374,0.49925,85561.0,85552.0,0.3608]
[1766103727681,0.13845,85560.0,85552.0,0.3608]
[1766103728180,0.3608,85561.0,85552.0,0.3608]
[1766103730885,0.3608,85561.0,85551.0,0.0116952]
[1766103731990,0.13845,85560.0,85550.0,0.3608]
[1766103733177,0.14428,85559.0,85543.0,0.3608]
[1766103733572,0.50508,85550.0,85538.0,0.00233816]
[1766103733781,0.3608,85540.0,85528.0,0.14084]
[1766103734076,0.3608,85540.0,85530.0,0.3608]
[1766103734676,9.039e-05,85539.0,85530.0,0.3608]
[1766103735272,9.039e-05,85539.0,85533.0,0.0116977]
[1766103738680,0.00017531,85544.0,85537.0,0.3608]
[1766103738874,0.3034,85543.0,85537.0,0.3608]
[1766103739487,0.3034,85543.0,85537.0,0.3724971]
[1766103739679,4.75e-05,85542.0,85537.0,0.3724971]
[1766103741888,4.75e-05,85542.0,85538.0,0.14084]
[1766103742072,0.2200875,85542.0,85538.0,0.14084]
[1766103744689,4.75e-05,85542.0,85538.0,0.14084]
[1766103745392,4.75e-05,85542.0,85539.0,0.0116969]
[1766103745593,0.16284,85542.0,85538.0,0.14084]
[1766103745783,0.10284,85542.0,85538.0,0.14084]
[1766103746185,0.14428,85553.0,85542.0,0.14084]
[1766103746386,0.14428,85557.0,85548.0,0.3608]
[1766103746894,0.32384,85556.0,85548.0,0.3608]
[1766103747094,0.14428,85557.0,85548.0,0.3608]
[1766103747288,0.59904,85556.0,85548.0,0.3608]
[1766103747680,0.14428,85556.0,85548.0,0.3608]
[1766103747994,0.66,85555.0,85548.0,0.3608]
[1766103748592,0.14428,85556.0,85548.0,0.3608]
[1766103748796,0.66,85554.0,85548.0,0.3608]
[1766103749297,0.65996,85553.0,85549.0,0.0116956]
[1766103749489,0.15614941,85561.0,85549.0,0.0116956]
[1766103749793,0.14428,85559.0,85548.0,0.3608]
[1766103750195,0.1559743,85559.0,85548.0,0.3608]
[1766103750999,0.0116945,85557.0,85548.0,0.3608]
[1766103751384,0.0116952,85552.0,85548.0,0.3608]
[1766103751586,0.14428,85552.0,85540.0,0.1525368]
[1766103756004,0.1559752,85552.0,85540.0,0.14084]
[1766103758307,0.1559752,85552.0,85538.0,0.0116971]
[1766103758907,0.1559752,85552.0,85538.0,0.1525371]
[1766103759523,0.62388,85552.0,85540.0,0.0116968]
[1766103759822,0.62388,85552.0,85540.0,0.1525368]
[1766103760311,0.4796,85552.0,85540.0,0.1525368]
[1766103760920,0.14413,85551.0,85537.0,0.36097531]
[1766103761218,0.14413,85551.0,85541.0,0.0116967]
[1766103761620,0.4796,85552.0,85542.0,0.14084]
[1766103763421,0.8404,85552.0,85542.0,0.14084]
[1766103763612,0.98461,85552.0,85541.0,0.0116967]
[1766103764227,0.14434,85551.0,85541.0,0.0116967]
[1766103764527,0.14434,85551.0,85542.0,0.0116965]
[1766103765226,0.14434,85551.0,85544.0,0.0116962]
[1766103766127,0.92552,85552.0,85546.0,0.011696]
[1766103766323,0.92552,85552.0,85540.0,0.13963]
[1766103766828,0.92552,85552.0,85540.0,0.1513268]
[1766103767125,0.9372152,85552.0,85540.0,0.0116968]
[1766103768230,0.9372152,85552.0,85539.0,0.3608]
[1766103769128,0.3724952,85552.0,85539.0,0.3608]
[1766103770131,0.3724952,85552.0,85540.0,0.0116968]
[1766103770631,0.3608,85552.0,85540.0,0.1513268]
[1766103772930,0.3608,85552.0,85540.0,0.13963]
[1766103774131,0.3724953,85552.0,85540.0,0.13963]
[1766103777026,0.20496793,85550.0,85537.0,0.00017531]
[1766103777226,0.20496793,85550.0,85509.0,0.011701]
[1766103777227,0.0116981,85531.0,85515.0,0.3608]
[1766103777427,0.3608,85526.0,85513.0,0.13963]
[1766103777627,0.3608,85534.0,85515.0,0.13963]
[1766103778030,0.3608,85534.0,85521.0,0.13963]
[1766103778533,0.3608,85534.0,85527.0,0.0116985]
[1766103778738,0.3608,85534.0,85529.0,0.1513283]
[1766103779634,0.3608,85534.0,85526.0,0.0116987]
[1766103779841,0.3608,85534.0,85525.0,0.3608]
[1766103780025,0.3608,85534.0,85527.0,0.0116985]
[1766103781239,0.3608,85534.0,85528.0,0.13963]
[1766103781742,0.3608,85534.0,85525.0,0.3608]
[1766103782336,0.3608,85534.0,85526.0,0.1565087]
[1766103782729,0.3608,85534.0,85528.0,0.0116984]
[1766103784141,0.3608,85534.0,85526.0,0.14481]
[1766103785641,0.3608,85534.0,85527.0,0.0116986]
[1766103786747,0.00017531,85536.0,85533.0,0.3608]
[1766103787645,0.00067531,85536.0,85533.0,0.3608]
[1766103787942,0.00017531,85536.0,85533.0,0.3003]
[1766103789445,0.00017531,85536.0,85533.0,0.18273]
[1766103795453,0.00017531,85536.0,85531.0,0.3608]
[1766103796054,0.00017531,85536.0,85529.0,0.3608]
[1766103797049,0.01187271,85536.0,85529.0,0.3608]
[1766103797950,0.72177531,85536.0,85515.0,0.13912]
[1766103798150,0.72177531,85536.0,85502.0,0.49992]
[1766103798151,0.3608,85521.0,85502.0,0.49992]
[1766103798356,0.3608,85514.0,85503.0,0.1508218]
[1766103798649,0.3608,85507.0,85503.0,0.13912]
[1766103798855,0.0117003,85515.0,85503.0,0.49992]
[1766103799056,0.50943,85516.0,85503.0,0.49992]
[1766103799357,0.14863,85511.0,85503.0,0.3608]
[1766103799544,0.14863,85504.0,85489.0,0.13912]
[1766103799751,0.14863,85504.0,85490.0,0.1508236]
[1766103800054,0.1808,85497.0,85490.0,0.13912]
[1766103800245,0.1808,85497.0,85489.0,0.3608]
[1766103800445,0.32591,85497.0,85489.0,0.3608]
[1766103800751,9.576e-05,85496.0,85490.0,0.13912]
[1766103802447,0.50591,85505.0,85491.0,0.1508235]
[1766103803153,0.14532,85504.0,85491.0,0.13912]
[1766103803663,0.14532,85504.0,85491.0,0.1508235]
[1766103803956,0.14532,85504.0,85489.0,0.3608]
[1766103803957,0.31644,85503.0,85493.0,0.13912]
[1766103804157,0.31644,85503.0,85493.0,0.1508231]
[1766103806764,0.38796,85502.0,85493.0,0.1508231]
[1766103808047,0.38796,85502.0,85493.0,0.13912]
[1766103808253,0.31756,85503.0,85498.0,0.13912]
[1766103808561,0.59976,85507.0,85500.0,0.13912]
[1766103808749,0.59476625,85507.0,85504.0,0.3608]
[1766103810868,0.47476625,85507.0,85504.0,0.3608]
[1766103811868,0.65984,85512.0,85504.0,0.3608]
[1766103812053,0.80945,85512.0,85504.0,0.3608]
[1766103812766,0.8211507,85512.0,85504.0,0.3608]
[1766103813263,0.14961,85512.0,85504.0,0.3608]
[1766103813564,0.25424,85515.0,85505.0,0.13912]
[1766103813761,0.2659403,85515.0,85505.0,0.13912]
[1766103814066,0.25424,85515.0,85504.0,0.3608]
[1766103816165,0.25424,85515.0,85511.0,0.3608]
[1766103816366,0.40385,85515.0,85511.0,0.3608]
[1766103818070,0.40385,85515.0,85511.0,0.3008]
[1766103818273,0.3608,85513.0,85504.0,0.3608]
[1766103819665,0.0117011,85509.0,85497.0,0.13912]
[1766103819866,0.14961,85504.0,85496.0,0.3608]
[1766103820069,0.14961,85502.0,85492.0,0.34412]
[1766103820654,0.1613122,85501.0,85488.0,0.49992]
[1766103820860,0.14961,85498.0,85488.0,0.3608]
[1766103821058,0.1613127,85498.0,85488.0,0.3608]
[1766103821268,0.14961,85495.0,85479.0,0.3008]
[1766103821463,0.40941,85485.0,85473.0,0.0117059]
[1766103821659,0.04861,85485.0,85474.0,0.3608]
[1766103821856,0.04861,85485.0,85474.0,0.49992]
[1766103822671,0.04861,85485.0,85475.0,0.0117057]
[1766103823874,0.3608,85487.0,85475.0,0.0117057]
[1766103825167,0.13767,85489.0,85475.0,0.0117057]
[1766103826163,0.13767,85489.0,85474.0,0.49992]
[1766103827158,0.13767,85489.0,85474.0,0.5116258]
[1766103827364,0.13767,85487.0,85474.0,0.3608]
[1766103827686,0.04636,85475.0,85464.0,0.3608]
[1766103827865,0.3608,85465.0,85455.0,9.682e-05]
[1766103828179,0.3608,85456.0,85448.0,0.2468]
[1766103829075,0.00017553,85461.0,85453.0,0.1522986]
[1766103829275,0.00010537,85460.0,85453.0,0.1522986]
[1766103829479,0.00010537,85460.0,85453.0,0.14059]
[1766103830080,0.21016,85470.0,85459.0,0.14059]
[1766103830277,0.14804523,85472.0,85463.0,0.14059]
[1766103830464,0.33192,85479.0,85466.0,0.14059]
[1766103831574,0.33192,85479.0,85476.0,0.3608]
[1766103831765,0.69272,85479.0,85466.0,0.14059]
[1766103832866,0.0003,85478.0,85465.0,0.3608]
[1766103834281,0.00017553,85481.0,85477.0,0.3608]
[1766103834478,0.13948,85487.0,85478.0,0.14059]
[1766103834676,0.13948,85487.0,85484.0,0.3608]
[1766103835067,0.13948,85487.0,85484.0,0.3008]
[1766103835275,0.13948,85487.0,85484.0,0.2408]
[1766103835974,0.13948,85487.0,85477.0,0.00017553]
[1766103836182,0.3608,85485.0,85477.0,0.00017553]
[1766103836575,0.1493749,85482.0,85477.0,3e-08]
[1766103836983,0.3608,85478.0,85477.0,3e-08]
[1766103837174,0.49847,85478.0,85477.0,3e-08]
[1766103837891,0.13767,85474.0,85461.0,0.3608]
[1766103838587,0.13767,85472.0,85461.0,0.3608]
[1766103838781,0.3608,85469.0,85461.0,0.3608]
[1766103839080,0.13767,85468.0,85461.0,0.3608]
[1766103839270,0.13767,85468.0,85460.0,0.08468]
[1766103839271,0.13767,85468.0,85451.0,0.14059]
[1766103839467,0.13767,85468.0,85450.0,0.3608]
[1766103839468,0.3608,85462.0,85450.0,0.3608]
[1766103840482,0.3608,85462.0,85451.0,0.011709]
[1766103840677,0.3608,85469.0,85450.0,0.3608]
[1766103840678,0.3608,85469.0,85458.0,0.14059]
[1766103840978,0.42942074,85470.0,85461.0,0.0117075]
[1766103841184,0.42942074,85470.0,85458.0,0.152298]
[1766103841786,0.3608,85466.0,85457.0,0.3608]
[1766103842087,0.14618,85465.0,85457.0,0.3608]
[1766103842487,0.3608,85466.0,85457.0,0.3608]
[1766103843588,0.3608,85458.0,85442.0,0.14035]
[1766103844175,0.14618,85465.0,85454.0,0.3608]
[1766103844384,0.3608,85466.0,85454.0,0.50115]
[1766103844686,0.0117082,85457.0,85444.0,0.14035]
[1766103844886,0.3608,85450.0,85439.0,0.2514605]
[1766103845089,0.3608,85450.0,85440.0,0.14035]
[1766103845383,0.3608,85450.0,85441.0,0.1520604]
[1766103846581,0.3608,85450.0,85439.0,0.0994]
[1766103846789,0.0117097,85447.0,85439.0,0.0994]
[1766103847087,0.3608,85443.0,85439.0,0.0994]
[1766103847386,0.3608,85443.0,85434.0,0.62456]
[1766103847781,0.3608,85450.0,85441.0,0.14035]
[1766103847982,0.3608,85450.0,85440.0,0.3608]
[1766103851380,0.3725092,85450.0,85440.0,0.3608]